fUST/lending_fUST_20250701
["ID","MTS","AMOUNT","RATE_DAILY","PERIOD"]
[368770628,1751356244752,-517.42,0.00020777,2]
[368770629,1751356244762,-1088.23,0.00020778,2]
[368770630,1751356244772,-460.0,0.00020778,2]
[368770631,1751356244784,-834.6,0.00020778,2]
[368770632,1751356244794,-681.96,0.00020778,2]
[368770633,1751356244805,-880.67,0.00020778,2]
[368770635,1751356244815,-502.77,0.00020778,2]
[368770636,1751356244825,-460.0,0.00020778,2]
[368770637,1751356244834,-571.71,0.00020778,2]
[368770638,1751356244844,-491.9,0.00020778,2]
[368770639,1751356244854,-190.53,0.00020778,2]
[368770640,1751356244863,-1199.61,0.00020779,2]
[368770641,1751356244872,-460.0,0.00020779,2]
[368770642,1751356244882,-460.0,0.00020779,2]
[368770644,1751356244891,-460.0,0.00020779,2]
[368770645,1751356244901,-383.97527768,0.00020831,4]
[368770646,1751356244911,-500.0,0.00020913,2]
[368770647,1751356244920,-500.0,0.00020913,2]
[368770648,1751356244930,-735.02,0.00021051,2]
[368770649,1751356244941,-656.58,0.00021051,2]
[368770650,1751356244951,-1538.26,0.00021051,2]
[368770652,1751356244960,-478.66,0.00021051,2]
[368770653,1751356244969,-517.42,0.00021051,2]
[368770654,1751356244979,-1088.23,0.00021052,2]
[368770655,1751356244989,-460.0,0.00021052,2]
[368770656,1751356244999,-834.6,0.00021052,2]
[368770657,1751356245008,-681.96,0.00021052,2]
[368770658,1751356245017,-880.67,0.00021052,2]
[368770660,1751356245027,-502.77,0.00021052,2]
[368770661,1751356245037,-460.0,0.00021052,2]
[368770662,1751356245047,-571.71,0.00021052,2]
[368770663,1751356245056,-491.9,0.00021052,2]
[368770664,1751356245065,-1199.61,0.00021053,2]
[368770665,1751356245075,-460.0,0.00021053,2]
[368770666,1751356245084,-460.0,0.00021053,2]
[368770667,1751356245094,-460.0,0.00021053,2]
[368770669,1751356245104,-383.97527768,0.00021072,4]
[368770670,1751356245113,-966.0,0.00021185,2]
[368770671,1751356245123,-646.0,0.00021185,2]
[368770672,1751356245132,-2151.0,0.00021185,2]
[368770673,1751356245142,-1000.0,0.00021217,2]
[368770674,1751356245151,-1000.0,0.00021217,2]
[368770675,1751356245161,-383.97527768,0.00021314,5]
[368770676,1751356245170,-155.15941754,0.00021325,2]
[368770678,1751356245180,-971.9089426,0.00021325,2]
[368770679,1751356245191,-1842.86,0.00021325,2]
[368770680,1751356245201,-735.02,0.00021325,2]
[368770681,1751356245210,-656.58,0.00021325,2]
[368770682,1751356245220,-1538.26,0.00021325,2]
[368770683,1751356245229,-478.66,0.00021325,2]
[368770684,1751356245238,-517.42,0.00021325,2]
[368770685,1751356245248,-151.0,0.00021325,2]
[368770686,1751356245258,-151.0,0.00021325,2]
[368770687,1751356245268,-151.0,0.00021325,2]
[368770688,1751356245277,-151.62941,0.00021326,2]
[368770689,1751356245287,-151.0,0.00021326,2]
[368770690,1751356245296,-151.0,0.00021326,2]
[368770691,1751356245305,-151.0,0.00021326,2]
[368770692,1751356245314,-1088.23,0.00021326,2]
[368770693,1751356245323,-160.930611,0.00021326,2]
[368770694,1751356245332,-160.930611,0.00021326,2]
[368770695,1751356245342,-460.0,0.00021326,2]
[368770696,1751356245352,-834.6,0.00021326,2]
[368770698,1751356245361,-681.96,0.00021326,2]
[368770700,1751356245371,-880.67,0.00021326,2]
[368770702,1751356245381,-502.77,0.00021326,2]
[368770704,1751356245390,-512.78582457,0.00021326,2]
[368770705,1751356245400,-571.71,0.00021326,2]
[368770706,1751356245409,-491.9,0.00021326,2]
[368770707,1751356245418,-1199.61,0.00021327,2]
[368770708,1751356245428,-467.2450787,0.00021327,2]
[368770709,1751356245437,-460.0,0.00021327,2]
[368770710,1751356245446,-460.0,0.00021327,2]
[368770711,1751356245456,-151.0,0.00021328,2]
[368770712,1751356245465,-151.0,0.00021328,2]
[368770713,1751356245474,-151.0,0.00021328,2]
[368770714,1751356245483,-151.0,0.00021328,2]
[368770715,1751356245493,-151.0,0.00021328,2]
[368770716,1751356245502,-166.692229,0.00021328,2]
[368770717,1751356245512,-166.692229,0.00021328,2]
[368770718,1751356245522,-515.1978142,0.00021338,2]
[368770719,1751356245534,-12500.0,0.00021438,2]
[368770720,1751356245543,-151.0,0.00021438,2]
[368770721,1751356245553,-151.0,0.00021438,2]
[368770722,1751356245564,-12500.0,0.00021447,2]
[368770723,1751356245573,-151.0,0.00021447,2]
[368770724,1751356245583,-151.0,0.00021447,2]
[368770725,1751356245592,-151.0,0.00021447,2]
[368770726,1751356245602,-151.487986,0.00021447,2]
[368770727,1751356245613,-359.007035,0.00021447,2]
[368770728,1751356245622,-359.007035,0.00021447,2]
[368770729,1751356245632,-151.0,0.00021447,2]
[368770730,1751356245642,-151.0,0.00021447,2]
[368770731,1751356245652,-239.270683,0.00021455,2]
[368770732,1751356245661,-151.0,0.00021455,2]
[368770733,1751356245671,-151.0,0.00021455,2]
[368770734,1751356245680,-12500.0,0.00021455,2]
[368770735,1751356245690,-1000.0,0.0002146,2]
[368770736,1751356245700,-1003.0446686,0.0002146,2]
[368770737,1751356245711,-12500.0,0.00021464,2]
[368770738,1751356245721,-12500.0,0.00021473,2]
[368770739,1751356245731,-151.0,0.00021473,2]
[368770740,1751356245740,-64455.15551004,0.0002149,2]
[368770741,1751356245751,-23965.02039592,0.0002149,2]
[368770742,1751356245760,-303983.05527302,0.0002149,2]
[368770743,1751356245769,-151.0,0.0002149,2]
[368770744,1751356245781,-151.0,0.0002149,2]
[368770745,1751356245790,-151.0,0.0002149,2]
[368770746,1751356245799,-151.0,0.0002149,2]
[368770747,1751356245808,-151.0,0.0002149,2]
[368770748,1751356245817,-151.0,0.0002149,2]
[368770749,1751356245826,-160.930611,0.0002149,2]
[368770750,1751356245835,-160.930611,0.0002149,2]
[368770751,1751356245844,-151.0,0.0002149,2]
[368770752,1751356245854,-151.0,0.0002149,2]
[368770753,1751356245864,-151.0,0.0002149,2]
[368770754,1751356245873,-151.0,0.0002149,2]
[368770755,1751356245883,-359.007035,0.0002149,2]
[368770756,1751356245892,-359.007035,0.0002149,2]
[368770757,1751356245902,-151.0,0.0002149,2]
[368770758,1751356245911,-151.0,0.0002149,2]
[368770760,1751356245920,-151.0,0.0002149,2]
[368770761,1751356245929,-151.0,0.0002149,2]
[368770762,1751356245938,-151.0,0.0002149,2]
[368770763,1751356245947,-176.470104,0.0002149,2]
[368770764,1751356245956,-383.97527768,0.00021555,5]
[368770765,1751356245965,-976.581004,0.0002156,4]
[368770766,1751356245974,-735.02,0.00021599,2]
[368770767,1751356245983,-656.58,0.00021599,2]
[368770768,1751356245993,-1538.26,0.00021599,2]
[368770769,1751356246002,-478.66,0.00021599,2]
[368770770,1751356246011,-517.42,0.00021599,2]
[368770772,1751356246020,-1088.23,0.000216,2]
[368770773,1751356246030,-460.0,0.000216,2]
[368770774,1751356246040,-834.6,0.000216,2]
[368770775,1751356246050,-681.96,0.000216,2]
[368770777,1751356246060,-880.67,0.000216,2]
[368770779,1751356246069,-502.77,0.000216,2]
[368770786,1751356246160,-571.71,0.000216,2]
[368770788,1751356246170,-491.9,0.000216,2]
[368770790,1751356246179,-1199.61,0.00021601,2]
[368770792,1751356246188,-460.0,0.00021601,2]
[368770794,1751356246198,-460.0,0.00021601,2]
[368770796,1751356246208,-1842.86,0.00021715,2]
[368770798,1751356246217,-223.0315306,0.00021758,2]
[368770800,1751356246226,-688.85272705,0.00021765,2]
[368770802,1751356246236,-381.12367281,0.00021765,2]
[368770805,1751356246246,-383.97527768,0.00021797,6]
[368770806,1751356246255,-1842.86,0.00021825,2]
[368770808,1751356246265,-429.0,0.00021859,2]
[368770811,1751356246274,-735.02,0.00021873,2]
[368770813,1751356246284,-656.58,0.00021873,2]
[368770815,1751356246294,-1538.26,0.00021873,2]
[368770816,1751356246305,-478.66,0.00021873,2]
[368770817,1751356246315,-517.42,0.00021873,2]
[368770818,1751356246324,-1088.23,0.00021874,2]
[368770819,1751356246334,-543.57711116,0.00021874,2]
[368770820,1751356246343,-834.6,0.00021874,2]
[368770821,1751356246353,-681.96,0.00021874,2]
[368770822,1751356246362,-880.67,0.00021874,2]
[368770823,1751356246372,-502.77,0.00021874,2]
[368770824,1751356246381,-571.71,0.00021874,2]
[368770825,1751356246391,-491.9,0.00021874,2]
[368770826,1751356246401,-1199.61,0.00021875,2]
[368770827,1751356246410,-460.0,0.00021875,2]
[368770828,1751356246420,-460.0,0.00021875,2]
[368770829,1751356246429,-2654.72416771,0.00021879,2]
[368770830,1751356246438,-1426.71,0.000219,2]
[368770831,1751356246448,-5000.0,0.00021972,2]
[368770832,1751356246458,-1842.86,0.00021999,2]
[368770833,1751356246467,-1842.86,0.00021999,2]
[368770834,1751356246477,-7186.13188111,0.00022,7]
[368770835,1751356246487,-7772.73095642,0.00022,14]
[368770836,1751356246497,-166.0,0.00022,3]
[368770837,1751356246506,-166.0,0.00022,3]
[368770838,1751356246515,-166.0,0.00022,3]
[368770839,1751356246525,-166.0,0.00022,3]
[368770841,1751356246538,-166.0,0.00022,3]
[368770843,1751356246547,-166.0,0.00022,3]
[368770845,1751356246557,-166.0,0.00022,3]
[368770847,1751356246566,-166.0,0.00022,3]
[368770849,1751356246576,-172.0,0.00022,3]
[368770851,1751356246585,-318.0,0.00022,3]
[368770853,1751356246595,-318.0,0.00022,3]
[368770854,1751356246604,-318.0,0.00022,3]
[368770855,1751356246614,-318.0,0.00022,3]
[368770856,1751356246623,-313.64715017,0.00022,3]
[368770858,1751356246633,-165.29168728,0.00022,2]
[368770860,1751356246642,-318.0,0.00022,3]
[368770862,1751356246652,-318.0,0.00022,3]
[368770864,1751356246661,-318.0,0.00022,3]
[368770866,1751356246670,-318.0,0.00022,3]
[368770868,1751356246680,-318.0,0.00022,3]
[368770870,1751356246689,-160.0,0.00022,3]
[368770872,1751356246700,-5413.22139257,0.00022,3]
[368770874,1751356246710,-167.0,0.00022,2]
[368770877,1751356246721,-401.0,0.00022,2]
[368770879,1751356246731,-610.22016191,0.00022008,2]
[368770880,1751356246740,-1842.86,0.00022029,2]
[368770883,1751356246751,-1842.86,0.00022029,2]
[368770885,1751356246760,-1842.86,0.00022029,2]
[368770887,1751356246771,-383.97527768,0.00022038,6]
[368770888,1751356246781,-169.0,0.00022057,2]
[368770889,1751356246791,-206.0,0.0002206,2]
[368770890,1751356246801,-1842.86,0.00022087,2]
[368770891,1751356246810,-5041.70678519,0.00022088,2]
[368770893,1751356246820,-151.0,0.00022088,7]
[368770894,1751356246829,-151.0,0.00022088,7]
[368770895,1751356246838,-151.0,0.00022088,7]
[368770896,1751356246848,-151.0,0.00022088,7]
[368770897,1751356246857,-151.0,0.00022088,7]
[368770898,1751356246866,-166.692229,0.00022088,7]
[368770899,1751356246875,-166.692229,0.00022088,7]
[368770900,1751356246885,-429.0,0.00022094,2]
[368770902,1751356246895,-151.0,0.000221,5]
[368770903,1751356246904,-1842.86,0.00022129,2]
[368770904,1751356246913,-9898.43848392,0.0002213,2]
[368770905,1751356246922,-5000.0,0.0002213,2]
[368770906,1751356246932,-5000.0,0.0002213,2]
[368770907,1751356246942,-5000.0,0.0002213,2]
[368770908,1751356246952,-735.02,0.00022147,2]
[368770910,1751356246962,-656.58,0.00022147,2]
[368770911,1751356246971,-1538.26,0.00022147,2]
[368770912,1751356246981,-478.66,0.00022147,2]
[368770913,1751356246990,-517.42,0.00022147,2]
[368770914,1751356247000,-1088.23,0.00022148,2]
[368770915,1751356247009,-834.6,0.00022148,2]
[368770916,1751356247019,-681.96,0.00022148,2]
[368770918,1751356247028,-880.67,0.00022148,2]
[368770919,1751356247038,-502.77,0.00022148,2]
[368770920,1751356247047,-571.71,0.00022148,2]
[368770921,1751356247056,-491.9,0.00022148,2]
[368770922,1751356247065,-1199.61,0.00022149,2]
[368770923,1751356247075,-460.0,0.00022149,2]
[368770924,1751356247085,-460.0,0.00022149,2]
[368770925,1751356247094,-1842.86,0.00022155,2]
[368770927,1751356247104,-1842.86,0.00022155,2]
[368770928,1751356247114,-1842.86,0.00022155,2]
[368770929,1751356247123,-1842.86,0.00022155,2]
[368770930,1751356247134,-1843.07851977,0.00022155,2]
[368770931,1751356247143,-151.0,0.00022155,7]
[368770932,1751356247152,-241.475416,0.00022155,7]
[368770933,1751356247162,-151.0,0.00022155,7]
[368770935,1751356247172,-151.0,0.00022155,7]
[368770936,1751356247181,-160.930611,0.00022155,7]
[368770937,1751356247191,-160.930611,0.00022155,7]
[368770938,1751356247201,-500.528,0.00022156,2]
[368770939,1751356247210,-2200.0,0.00022156,2]
[368770940,1751356247219,-167.0,0.00022192,7]
[368770941,1751356247229,-401.0,0.00022192,7]
[368770943,1751356247239,-1856.58,0.000222,7]
[368770944,1751356247248,-10842.4,0.000222,7]
[368770945,1751356247257,-241.05971327,0.000222,69]
[368770946,1751356247267,-213.87551669,0.000222,7]
[368770947,1751356247277,-806.58903758,0.000222,7]
[368770952,1751356247579,-460.0,0.00018039,2]
[368770953,1751356247589,-460.0,0.00018313,2]
[368770954,1751356247598,-460.0,0.00018587,2]
[368770956,1751356247608,-460.0,0.00018861,2]
[368770957,1751356247617,-25000.0,0.0001902,2]
[368770958,1751356247627,-460.0,0.00019135,2]
[368770959,1751356247636,-584.17,0.00019409,2]
[368770960,1751356247645,-25000.0,0.00019568,2]
[368770961,1751356247654,-40.94368523,0.000222,7]
[368770962,1751356247665,-1210.91323182,0.00022265,2]
[368770963,1751356247674,-151.0,0.00022273,7]
[368770965,1751356247684,-151.0,0.00022273,2]
[368770966,1751356247693,-151.0,0.00022273,2]
[368770967,1751356247704,-383.97527768,0.00022279,6]
[368770968,1751356247717,-151.0,0.0002229,7]
[368770969,1751356247727,-151.0,0.0002229,7]
[368770970,1751356247737,-3028.75276692,0.000223,7]
[368770972,1751356248012,-405.34517072,0.00018037,2]
[368770974,1751356248219,-54.65482928,0.00018037,2]
[368770975,1751356248229,-261.42517072,0.00018037,2]
[368770999,1751356250281,163.0,0.00018,2]
[368771148,1751356273572,44697.69656711,0.00017939,2]
[368771149,1751356273596,60000.0,0.00017939,2]
[368771150,1751356273623,80000.0,0.00017939,2]
[368771151,1751356273687,30000.0,0.00017939,2]
[368771152,1751356273755,30000.0,0.00017939,2]
[368771153,1751356273824,30000.0,0.00017939,2]
[368771154,1751356273892,30000.0,0.00017939,2]
[368771155,1751356273963,30000.0,0.00017939,2]
[368771156,1751356274028,30000.0,0.00017939,2]
[368771157,1751356274090,5302.30343289,0.00017939,2]
[368771412,1751356350981,200.0,0.00024136,120]
[368771461,1751356397999,219.274656,0.00017496,2]
[368771462,1751356398500,180.03902434,0.00017497,2]
[368771463,1751356430668,24298.38288677,0.00017939,2]
[368771464,1751356430732,30000.0,0.00017939,2]
[368771465,1751356430797,30000.0,0.00017939,2]
[368771466,1751356430861,30000.0,0.00017939,2]
[368771467,1751356430925,30000.0,0.00017939,2]
[368771468,1751356430988,30000.0,0.00017939,2]
[368771469,1751356431050,30000.0,0.00017939,2]
[368771470,1751356431109,30000.0,0.00017939,2]
[368771471,1751356431172,30000.0,0.00017939,2]
[368771472,1751356431239,30000.0,0.00017939,2]
[368771473,1751356431297,30000.0,0.00017939,2]
[368771474,1751356431357,30000.0,0.00017939,2]
[368771475,1751356431414,15701.61711323,0.00017939,2]
[368771476,1751356480674,-720.0,0.00018036,2]
[368771477,1751356480743,-300.0,0.00018036,2]
[368771478,1751356480816,-460.0,0.00018037,2]
[368771479,1751356480888,-460.0,0.00018037,2]
[368771480,1751356480959,-460.0,0.00018037,2]
[368771481,1751356481028,-460.0,0.00018037,2]
[368771482,1751356481106,-450.90477581,0.00018037,2]
[368771483,1751356481168,-460.0,0.00018037,2]
[368771484,1751356481232,-460.0,0.00018037,2]
[368771485,1751356481296,-460.0,0.00018037,2]
[368771486,1751356481369,-460.0,0.00018037,2]
[368771487,1751356481443,-460.0,0.00018037,2]
[368771488,1751356481505,-460.0,0.00018037,2]
[368771489,1751356481571,-462.57619362,0.00018037,2]
[368771490,1751356481638,-460.0,0.00018037,2]
[368771491,1751356481702,-420.47972615,0.00018037,2]
[368771492,1751356481767,-460.0,0.00018037,2]
[368771493,1751356481835,-460.0,0.00018037,2]
[368771494,1751356481911,-460.0,0.00018037,2]
[368771495,1751356481991,-460.0,0.00018037,2]
[368771496,1751356482062,-460.0,0.00018037,2]
[368771497,1751356482136,-112.07860884,0.00018037,2]
[368771498,1751356482501,-347.92139116,0.00018037,2]
[368771499,1751356482573,-460.0,0.00018037,2]
[368771500,1751356482638,-460.0,0.00018037,2]
[368771501,1751356482704,-460.0,0.00018037,2]
[368771502,1751356482765,-460.0,0.00018037,2]
[368771503,1751356482829,-460.0,0.00018037,2]
[368771504,1751356482902,-460.0,0.00018037,2]
[368771505,1751356482966,-460.0,0.00018037,2]
[368771506,1751356483031,-460.0,0.00018037,2]
[368771507,1751356483097,-460.0,0.00018037,2]
[368771508,1751356483157,-460.0,0.00018037,2]
[368771509,1751356483219,-460.0,0.00018037,2]
[368771510,1751356483290,-460.0,0.00018037,2]
[368771511,1751356483355,-493.95759582,0.00018037,2]
[368771512,1751356483419,-222.94610915,0.00018037,2]
[368771513,1751356483484,-460.0,0.00018037,2]
[368771514,1751356483548,-460.0,0.00018037,2]
[368771515,1751356483616,-460.0,0.00018037,2]
[368771516,1751356483682,-460.0,0.00018037,2]
[368771517,1751356483747,-460.0,0.00018037,2]
[368771518,1751356483812,-486.24,0.00018037,2]
[368771519,1751356483880,-460.0,0.00018037,2]
[368771520,1751356484162,-460.0,0.00018037,2]
[368771521,1751356484230,-460.0,0.00018037,2]
[368771522,1751356484296,-460.0,0.00018037,2]
[368771523,1751356484488,-460.0,0.00018037,2]
[368771524,1751356484558,-460.0,0.00018037,2]
[368771525,1751356484624,-460.0,0.00018037,2]
[368771526,1751356484690,-460.0,0.00018037,2]
[368771527,1751356484755,-460.0,0.00018037,2]
[368771528,1751356484818,-460.64895119,0.00018037,2]
[368771529,1751356484886,-460.0,0.00018037,2]
[368771530,1751356484953,-460.0,0.00018037,2]
[368771531,1751356485019,-460.0,0.00018037,2]
[368771532,1751356485086,-460.0,0.00018037,2]
[368771533,1751356485151,-460.0,0.00018037,2]
[368771534,1751356485217,-460.0,0.00018037,2]
[368771535,1751356485283,-352.42171012,0.00018037,2]
[368771536,1751356485353,-224.16757188,0.00018037,2]
[368771537,1751356485424,-460.0,0.00018038,2]
[368771538,1751356485492,-460.0,0.00018038,2]
[368771539,1751356485561,-460.0,0.00018038,2]
[368771540,1751356485632,-460.0,0.00018038,2]
[368771541,1751356485707,-411.23639041,0.00018038,2]
[368771542,1751356485779,-83.0507528,0.00018038,2]
[368771543,1751356486001,-376.9492472,0.00018038,2]
[368771544,1751356486070,-572.39,0.00018038,2]
[368771545,1751356486137,-460.0,0.00018038,2]
[368771546,1751356486203,-460.0,0.00018038,2]
[368771547,1751356486274,-460.0,0.00018038,2]
[368771548,1751356486342,-460.0,0.00018038,2]
[368771549,1751356486422,-460.0,0.00018038,2]
[368771550,1751356486490,-460.0,0.00018038,2]
[368771551,1751356486556,-460.0,0.00018038,2]
[368771552,1751356486626,-460.0,0.00018038,2]
[368771553,1751356486702,-460.0,0.00018038,2]
[368771554,1751356486771,-490.0,0.00018038,2]
[368771555,1751356486840,-460.0,0.00018038,2]
[368771556,1751356486909,-460.0,0.00018038,2]
[368771557,1751356486977,-460.0,0.00018038,2]
[368771558,1751356487052,-460.0,0.00018038,2]
[368771559,1751356487116,-460.0,0.00018038,2]
[368771560,1751356487182,-736.71,0.00018038,2]
[368771561,1751356487252,-460.0,0.00018038,2]
[368771562,1751356487313,-460.0,0.00018038,2]
[368771563,1751356487375,-460.0,0.00018038,2]
[368771564,1751356487725,-460.0,0.00018038,2]
[368771565,1751356487794,-460.0,0.00018038,2]
[368771566,1751356487868,-399.31,0.00018038,2]
[368771567,1751356487941,-460.0,0.00018038,2]
[368771568,1751356488014,-460.0,0.00018038,2]
[368771569,1751356488085,-460.0,0.00018038,2]
[368771570,1751356488155,-460.0,0.00018038,2]
[368771571,1751356488223,-460.0,0.00018038,2]
[368771572,1751356488290,-460.0,0.00018038,2]
[368771573,1751356488358,-554.53,0.00018038,2]
[368771574,1751356488430,-460.0,0.00018038,2]
[368771575,1751356488498,-460.0,0.00018038,2]
[368771576,1751356488567,-460.0,0.00018038,2]
[368771577,1751356488637,-460.0,0.00018038,2]
[368771578,1751356488708,-460.0,0.00018038,2]
[368771579,1751356488777,-460.0,0.00018038,2]
[368771580,1751356488852,-460.0,0.00018038,2]
[368771581,1751356488929,-460.0,0.00018039,2]
[368771582,1751356489001,-332.27431573,0.00018039,2]
[368771583,1751356489072,-460.0,0.00018039,2]
[368771584,1751356489140,-408.09480305,0.00018039,2]
[368771585,1751356489214,-426.49092262,0.00018039,2]
[368771586,1751356489610,-460.0,0.00018039,2]
[368771587,1751356489681,-460.0,0.00018039,2]
[368771588,1751356489752,-460.0,0.00018039,2]
[368771589,1751356489820,-460.0,0.00018039,2]
[368771590,1751356489893,-460.0,0.00018039,2]
[368771591,1751356489967,-832.56,0.00018039,2]
[368771592,1751356490039,-460.0,0.00018039,2]
[368771593,1751356490107,-460.0,0.0001804,2]
[368771594,1751356490178,-460.0,0.0001804,2]
[368771595,1751356490250,-460.0,0.0001804,2]
[368771596,1751356490320,-460.0,0.0001804,2]
[368771597,1751356490389,-460.0,0.0001804,2]
[368771598,1751356490461,-460.0,0.0001804,2]
[368771599,1751356490528,-460.0,0.0001804,2]
[368771600,1751356493283,460.0,0.00018038,2]
[368771601,1751356493422,598.66,0.00018037,2]
[368771602,1751356494014,460.0,0.00018038,2]
[368771603,1751356494989,460.0,0.00018038,2]
[368771604,1751356499590,460.0,0.00018037,2]
[368771605,1751356499771,460.0,0.00018038,2]
[368771606,1751356501076,460.0,0.00018037,2]
[368771607,1751356503030,460.0,0.00018037,2]
[368771608,1751356503326,460.0,0.00018037,2]
[368771609,1751356505374,460.0,0.0001804,2]
[368771610,1751356509499,460.0,0.00018038,2]
[368771611,1751356510689,460.0,0.00018039,2]
[368771612,1751356512933,460.0,0.00018037,2]
[368771613,1751356513063,256.22,0.00018038,2]
[368771614,1751356513130,230.59,0.00018038,2]
[368771615,1751356513708,533.04,0.00018038,2]
[368771616,1751356514954,615.33,0.00018038,2]
[368771617,1751356516933,460.0,0.0001804,2]
[368771618,1751356517016,460.0,0.00018037,2]
[368771619,1751356518437,460.0,0.00018038,2]
[368771620,1751356525014,460.0,0.00018038,2]
[368771621,1751356525465,546.03139147,0.00018039,2]
[368771622,1751356525549,370.0,0.00018038,2]
[368771623,1751356527476,460.0,0.00018038,2]
[368771624,1751356532779,460.0,0.00018038,2]
[368771625,1751356539151,460.0,0.00018038,2]
[368771626,1751356540918,460.0,0.00018038,2]
[368771627,1751356543056,460.0,0.00018039,2]
[368771628,1751356543218,460.0,0.00018038,2]
[368771629,1751356547104,493.71,0.00018038,2]
[368771634,1751356550460,460.0,0.00018037,2]
[368771643,1751356551895,460.0,0.00018036,2]
[368771647,1751356552257,460.0,0.00018037,2]
[368771656,1751356554049,460.0,0.0001804,2]
[368771664,1751356559642,460.0,0.00018037,2]
[368771665,1751356564073,460.0,0.00018037,2]
[368771666,1751356566449,460.0,0.00018038,2]
[368771667,1751356567541,805.98,0.00018038,2]
[368771669,1751356575112,346.74976442,0.00018036,2]
[368771670,1751356579003,460.0,0.00018038,2]
[368771671,1751356579733,460.0,0.00018037,2]
[368771672,1751356580521,460.0,0.00018038,2]
[368771673,1751356581442,460.0,0.00018036,2]
[368771674,1751356585001,460.0,0.00018036,2]
[368771675,1751356589243,460.0,0.00018037,2]
[368771679,1751356589887,460.0,0.00018037,2]
[368771700,1751356595090,460.0,0.00018038,2]
[368771703,1751356596193,460.0,0.00018036,2]
[368771704,1751356600031,460.0,0.00018038,2]
[368771705,1751356600583,460.0,0.00018037,2]
[368771706,1751356602172,460.0,0.00018038,2]
[368771707,1751356602241,460.0,0.00018038,2]
[368771708,1751356609198,460.0,0.00018036,2]
[368771709,1751356609598,460.0,0.00018037,2]
[368771710,1751356610706,512.36,0.00018038,2]
[368771711,1751356611608,460.0,0.00018037,2]
[368771713,1751356620479,366.20884411,0.00018038,2]
[368771714,1751356620555,559.84115589,0.00018038,2]
[368771715,1751356621159,460.0,0.00018036,2]
[368771716,1751356630286,460.0,0.00018037,2]
[368771717,1751356631892,460.0,0.00018037,2]
[368771718,1751356632939,460.0,0.00018037,2]
[368771719,1751356634283,460.0,0.00018037,2]
[368771720,1751356638842,460.0,0.00018037,2]
[368771721,1751356640861,524.88043712,0.00018036,2]
[368771722,1751356641505,460.0,0.00018037,2]
[368771723,1751356643858,460.0,0.00018037,2]
[368771724,1751356647545,460.0,0.00018037,2]
[368771725,1751356647963,460.0,0.00018036,2]
[368771727,1751356649755,460.0,0.00018037,2]
[368771728,1751356650043,460.0,0.00018037,2]
[368771730,1751356653512,460.0,0.00018038,2]
[368771731,1751356654843,591.23,0.00018036,2]
[368771734,1751356655261,460.0,0.00018037,2]